bitfinex-derivatives/quotes_BTCF0:USTF0_20250313
["timestamp","ask_amount","ask_price","bid_price","bid_amount"]
[1741849576440,0.16753526,83335.0,83325.0,0.1200216]
[1741849576637,0.12020014,83326.0,83325.0,0.4751416]
[1741849577034,0.12020014,83326.0,83325.0,0.4964478]
[1741849577234,0.00018004,83326.0,83325.0,0.52977485]
[1741849577436,0.00018004,83326.0,83325.0,0.52633813]
[1741849577749,0.12020014,83326.0,83325.0,0.51177485]
[1741849578338,0.00018004,83326.0,83325.0,0.52177485]
[1741849578533,0.00018004,83326.0,83325.0,0.52377485]
[1741849578943,0.00018004,83326.0,83325.0,0.5371234]
[1741849579743,0.12020014,83326.0,83325.0,0.5371234]
[1741849580135,0.00018004,83326.0,83325.0,0.5371234]
[1741849580339,0.00018004,83326.0,83325.0,0.53705411]
[1741849582238,0.00018004,83326.0,83325.0,0.41193411]
[1741849582437,0.00018004,83326.0,83325.0,0.53693411]
[1741849583345,0.12020014,83326.0,83325.0,0.53693411]
[1741849584352,0.12020014,83326.0,83325.0,0.53702725]
[1741849584748,0.12020014,83326.0,83325.0,0.53686725]
[1741849585653,0.12020014,83326.0,83325.0,0.56996725]
[1741849585654,0.15200014,83326.0,83325.0,0.56996725]
[1741849586141,0.15200014,83326.0,83325.0,0.56963349]
[1741849586745,0.15200014,83326.0,83325.0,0.44479349]
[1741849586948,0.15200014,83326.0,83325.0,0.05167189]
[1741849587146,0.18420014,83326.0,83325.0,0.05167189]
[1741849588148,0.19648842,83326.0,83325.0,0.05167189]
[1741849588349,0.19648842,83326.0,83325.0,0.03053653]
[1741849588550,0.1200345,83316.0,83312.0,0.2447196]
[1741849588750,0.1200345,83316.0,83315.0,0.02112619]
[1741849588950,0.1200345,83316.0,83315.0,0.14116219]
[1741849589245,0.1200345,83316.0,83315.0,0.02112619]
[1741849589650,0.1200345,83316.0,83315.0,0.02512619]
[1741849589857,0.1200345,83316.0,83315.0,0.03012619]
[1741849590253,0.1200345,83316.0,83315.0,0.00918004]
[1741849596958,0.1200345,83316.0,83315.0,0.00618004]
[1741849597858,0.1200345,83316.0,83315.0,0.00218004]
[1741849598058,0.1200345,83316.0,83315.0,0.00418004]
[1741849600560,0.1804345,83316.0,83315.0,0.07962925]
[1741849600864,0.1804345,83316.0,83315.0,0.22086297]
[1741849601271,0.1804345,83316.0,83315.0,0.11437456]
[1741849601857,0.1804345,83316.0,83315.0,0.05217456]
[1741849602264,0.1804345,83316.0,83315.0,0.03097684]
[1741849603366,0.1804345,83316.0,83315.0,0.01772763]
[1741849603568,0.2132345,83316.0,83315.0,0.01772763]
[1741849603866,0.1200446,83309.0,83308.0,0.0622]
[1741849604062,0.1200446,83309.0,83308.0,0.21596421]
[1741849604763,0.1807446,83309.0,83308.0,0.09591821]
[1741849604962,0.1807446,83309.0,83308.0,0.07516847]
[1741849605158,0.1807446,83309.0,83308.0,0.07916847]
[1741849605665,0.1807446,83309.0,83308.0,0.08316847]
[1741849607063,0.1807446,83309.0,83308.0,0.05256847]
[1741849607867,0.1927559,83309.0,83308.0,0.05256847]
[1741849610259,0.1927559,83309.0,83308.0,0.02096847]
[1741849610465,0.1200532,83303.0,83302.0,0.0636]
[1741849611466,0.1830532,83303.0,83302.0,0.0636]
[1741849611669,0.1840532,83303.0,83302.0,0.0736]
[1741849611865,0.19594419,83303.0,83302.0,0.0736]
[1741849613172,0.19594419,83303.0,83302.0,0.0412]
[1741849613363,0.07589099,83303.0,83285.0,0.12336]
[1741849613558,0.1200749,83288.0,83285.0,0.12336]
[1741849613759,0.1200749,83288.0,83286.0,0.0305]
[1741849614668,0.1823749,83288.0,83286.0,0.0305]
[1741849614874,0.1833749,83288.0,83286.0,0.0305]
[1741849615267,0.19521737,83288.0,83286.0,0.0305]
[1741849616573,0.19621737,83288.0,83287.0,0.0324]
[1741849617762,0.1843749,83288.0,83287.0,0.1524763]
[1741849617963,0.002,83288.0,83287.0,0.0924]
[1741849618166,0.002,83288.0,83287.0,0.4142763]
[1741849618376,0.002,83288.0,83287.0,0.4342763]
[1741849618567,0.002,83288.0,83287.0,0.46909037]
[1741849619074,0.002,83288.0,83287.0,0.60337037]
[1741849619380,0.10254614,83295.0,83287.0,0.48329407]
[1741849619679,0.10254614,83295.0,83294.0,0.1200662]
[1741849619875,0.10254614,83295.0,83294.0,0.14131456]
[1741849620380,0.10254614,83295.0,83294.0,0.43488027]
[1741849620576,0.10254614,83295.0,83294.0,0.62274027]
[1741849620770,0.10254614,83295.0,83294.0,0.59493085]
[1741849620971,0.22261094,83295.0,83294.0,0.59493085]
[1741849621573,0.1200648,83295.0,83294.0,0.61493085]
[1741849621779,0.00018004,83296.0,83295.0,0.1200648]
[1741849621982,0.00018004,83296.0,83295.0,0.50481316]
[1741849622178,0.12024334,83296.0,83295.0,0.44481316]
[1741849622380,0.12024334,83296.0,83295.0,0.45839503]
[1741849622879,0.12024334,83296.0,83295.0,0.49407545]
[1741849623081,0.00018004,83296.0,83295.0,0.49407545]
[1741849623283,0.00018004,83296.0,83295.0,0.51407545]
[1741849623580,0.12024334,83296.0,83295.0,0.49407545]
[1741849623984,0.12024334,83296.0,83295.0,0.51407545]
[1741849624481,0.00018004,83296.0,83295.0,0.49407545]
[1741849624784,0.00018004,83296.0,83295.0,0.51407545]
[1741849625473,0.17953028,83312.0,83295.0,0.63468328]
[1741849625785,0.180704,83312.0,83311.0,0.1200417]
[1741849625980,0.180704,83312.0,83311.0,0.19945806]
[1741849626375,0.180064,83312.0,83311.0,0.19945806]
[1741849626680,0.0600202,83312.0,83311.0,0.3300056]
[1741849626873,0.0600202,83312.0,83311.0,0.2845056]
[1741849627380,0.0600202,83312.0,83311.0,0.15225287]
[1741849627585,0.1254202,83312.0,83311.0,0.13561848]
[1741849627785,0.1254202,83312.0,83311.0,0.13661848]
[1741849628085,0.1254202,83312.0,83311.0,0.25666018]
[1741849629080,0.1254202,83312.0,83311.0,0.23454547]
[1741849629482,0.1254202,83312.0,83311.0,0.05000377]
[1741849629883,0.1254202,83312.0,83311.0,0.04900377]
[1741849630785,0.1284202,83312.0,83311.0,0.04900377]
[1741849631789,0.1284202,83312.0,83311.0,0.07666694]
[1741849632488,0.1284202,83312.0,83311.0,0.09911029]
[1741849632787,0.1304202,83312.0,83311.0,0.09911029]
[1741849635790,0.07955699,83312.0,83303.0,0.21412033]
[1741849635994,0.1200504,83305.0,83304.0,0.03590055]
[1741849636489,0.1200504,83305.0,83304.0,0.01380783]
[1741849636993,0.1829504,83305.0,83304.0,0.01380783]
[1741849637495,0.1200576,83300.0,83299.0,0.28501665]
[1741849637696,0.2436576,83300.0,83299.0,0.28501665]
[1741849638388,0.3048576,83300.0,83299.0,0.28501665]
[1741849638797,0.1848,83300.0,83291.0,0.00018004]
[1741849638987,0.1200677,83293.0,83291.0,0.00018004]
[1741849639293,0.1200691,83292.0,83291.0,0.00018004]
[1741849639597,0.1825691,83292.0,83291.0,0.00018004]
[1741849639792,0.1948819,83292.0,83291.0,0.00018004]
[1741849640484,0.1938819,83292.0,83291.0,0.00018004]
[1741849641385,0.1928819,83292.0,83291.0,0.00018004]
[1741849641983,0.1928819,83292.0,83291.0,0.00118004]
[1741849642189,0.1805691,83292.0,83291.0,0.00118004]
[1741849642388,0.1805691,83292.0,83291.0,0.00318004]
[1741849642581,0.19280369,83292.0,83291.0,0.00318004]
[1741849644096,0.2020057,83292.0,83291.0,0.00318004]
[1741849645704,0.1805691,83292.0,83291.0,0.00318004]
[1741849646000,0.19277032,83292.0,83291.0,0.00318004]
[1741849648185,0.22387032,83292.0,83291.0,0.00318004]
[1741849648391,0.22387032,83292.0,83291.0,0.01671347]
[1741849648791,0.2330345,83292.0,83291.0,0.01671347]
[1741849649399,0.2330345,83292.0,83291.0,0.03017358]
[1741849649897,0.2330345,83292.0,83291.0,0.01671347]
[1741849650198,0.2330345,83292.0,83291.0,0.03013073]
[1741849650393,0.2330345,83292.0,83291.0,0.0165973]
[1741849651997,0.1200749,83288.0,83287.0,0.00180092]
[1741849652896,0.1820749,83288.0,83287.0,0.01528546]
[1741849653293,0.1820749,83288.0,83287.0,0.01728546]
[1741849654000,0.1820749,83288.0,83287.0,0.03865703]
[1741849654600,0.1820749,83288.0,83287.0,0.01728546]
[1741849656501,0.1820749,83288.0,83262.0,0.01662356]
[1741849656502,0.062,83288.0,83262.0,0.01662356]
[1741849656802,0.1200979,83272.0,83271.0,0.0629]
[1741849656989,0.1200979,83272.0,83271.0,0.08425028]
[1741849657602,0.1532979,83272.0,83271.0,0.08425028]
[1741849658300,0.0600469,83275.0,83271.0,0.08425028]
[1741849658301,0.060045,83278.0,83271.0,0.09647526]
[1741849658495,0.1801372,83278.0,83277.0,0.1200907]
[1741849658697,0.1801372,83278.0,83277.0,0.14144098]
[1741849658897,0.1801372,83278.0,83277.0,0.02135028]
[1741849659292,0.1924705,83278.0,83277.0,0.08315028]
[1741849659497,0.2539705,83278.0,83277.0,0.08315028]
[1741849659705,0.2539705,83278.0,83277.0,0.08359379]
[1741849661205,0.2549705,83278.0,83277.0,0.08359379]
[1741849661395,0.2549705,83278.0,83277.0,0.02179379]
[1741849663599,0.1348783,83278.0,83277.0,0.02172102]
[1741849663800,0.1348783,83278.0,83263.0,0.00024297]
[1741849663801,0.1201052,83267.0,83263.0,0.00024297]
[1741849664001,0.120108,83265.0,83264.0,0.01360922]
[1741849664201,0.120108,83265.0,83264.0,0.04480922]
[1741849664509,0.183008,83265.0,83264.0,0.04480922]
[1741849665597,0.183008,83265.0,83264.0,0.04483696]
[1741849666509,0.183008,83265.0,83264.0,0.04443696]
[1741849666805,0.183008,83265.0,83264.0,0.01363696]
[1741849667803,0.183008,83265.0,83264.0,0.04108572]
[1741849668311,0.0600577,83260.0,83254.0,0.01666389]
[1741849668501,0.0629,83265.0,83259.0,0.0308]
[1741849668502,0.01201094,83265.0,83259.0,0.0308]
[1741849668697,0.14379381,83270.0,83260.0,0.0647]
[1741849668902,0.14379381,83270.0,83269.0,0.1201023]
[1741849669108,0.1201037,83268.0,83267.0,0.060052]
[1741849669905,0.1201066,83266.0,83265.0,0.0600539]
[1741849670108,0.14379381,83270.0,83269.0,0.1201023]
[1741849670612,0.14379381,83270.0,83267.0,0.01197603]
[1741849670613,0.1201037,83268.0,83267.0,0.01197603]
[1741849670814,0.01176179,83271.0,83265.0,0.1201074]
[1741849671014,0.1201066,83266.0,83265.0,0.1201074]
[1741849671515,0.1201066,83266.0,83265.0,0.15743188]
[1741849671713,0.13222275,83266.0,83265.0,0.03732448]
[1741849671914,0.1201066,83266.0,83265.0,0.03732448]
[1741849673009,0.13195551,83266.0,83265.0,0.03732448]
[1741849674014,0.13195551,83266.0,83265.0,0.05984019]
[1741849674711,0.1201066,83266.0,83265.0,0.05984019]
[1741849677319,0.1201066,83266.0,83265.0,0.03608926]
[1741849677611,0.1201066,83266.0,83265.0,0.02173369]
[1741849677917,0.1201066,83266.0,83265.0,6e-08]
[1741849678114,0.1201066,83266.0,83248.0,0.032]
[1741849678320,0.1201311,83249.0,83248.0,0.032]
[1741849679918,0.1201311,83249.0,83248.0,0.1521326]
[1741849680220,0.1201306,83251.0,83250.0,0.1201277]
[1741849680515,0.1201306,83251.0,83250.0,0.13341669]
[1741849680718,0.0600612,83255.0,83250.0,0.01328899]
[1741849680918,0.21560929,83266.0,83256.0,0.120121]
[1741849681114,0.15555599,83266.0,83256.0,0.13340999]
[1741849681315,0.12029975,83257.0,83256.0,0.13340999]
[1741849681818,0.00018015,83257.0,83256.0,0.13340999]
[1741849682016,0.12029975,83257.0,83256.0,0.13340999]
[1741849683014,0.00018015,83257.0,83256.0,0.14340999]
[1741849683524,0.00018015,83257.0,83256.0,0.17410999]
[1741849684122,0.12029975,83257.0,83256.0,0.17410999]
[1741849685726,0.12029975,83257.0,83256.0,0.19069195]
[1741849686023,0.12029975,83257.0,83256.0,0.22169195]
[1741849686415,0.15249975,83257.0,83256.0,0.20505]
[1741849687016,0.15249975,83257.0,83256.0,0.33073]
[1741849687727,0.15249975,83257.0,83256.0,0.35196002]
[1741849687922,0.00018015,83257.0,83256.0,0.35196002]
[1741849688129,0.00018015,83257.0,83256.0,0.36860197]
[1741849688519,0.12029975,83257.0,83256.0,0.35196002]
[1741849688825,0.00018015,83257.0,83256.0,0.36860476]
[1741849689024,0.00018015,83257.0,83256.0,0.35196002]
[1741849689420,0.00018015,83257.0,83256.0,0.04445902]
[1741849689629,0.12029975,83257.0,83256.0,0.03445902]
[1741849690227,0.12029975,83257.0,83256.0,0.04779482]
[1741849692019,0.00018015,83257.0,83256.0,0.03363992]
[1741849692222,0.12029975,83257.0,83256.0,0.03363992]
[1741849695019,0.18229975,83257.0,83256.0,0.01293836]
[1741849697830,0.06218015,83257.0,83256.0,0.13305936]
[1741849698127,0.00018015,83257.0,83256.0,0.13305936]
[1741849698331,0.12029975,83257.0,83256.0,0.13305936]
[1741849698518,0.12029975,83257.0,83256.0,0.19505936]
[1741849699130,0.15029975,83257.0,83256.0,0.19505936]
[1741849699925,0.15029975,83257.0,83256.0,0.07466263]
[1741849700125,0.15029975,83257.0,83256.0,0.09498875]
[1741849705132,0.15029975,83257.0,83256.0,0.21510975]
[1741849705322,0.15029975,83257.0,83256.0,0.09498875]
[1741849709030,0.15029975,83257.0,83256.0,0.07466263]
[1741849710439,0.18049975,83257.0,83256.0,0.01266263]
[1741849710633,0.18049975,83257.0,83256.0,0.04276263]
[1741849710936,0.18049975,83257.0,83256.0,0.01266263]
[1741849711340,0.1201326,83248.0,83247.0,0.0319]
[1741849711523,0.1201326,83248.0,83245.0,0.0305]
[1741849711730,0.1201355,83246.0,83245.0,0.0319]
[1741849712226,0.1709355,83246.0,83245.0,0.0319]
[1741849712827,0.18280793,83246.0,83245.0,0.0319]
[1741849713441,0.07467243,83246.0,83244.0,0.28547845]
[1741849713631,0.1201369,83245.0,83244.0,0.28547845]
[1741849714033,0.1829369,83245.0,83244.0,0.28547845]
[1741849714736,0.0600706,83242.0,83238.0,0.1244]
[1741849714937,0.1201441,83240.0,83239.0,0.0965]
[1741849715244,0.1201441,83240.0,83237.0,0.01175575]
[1741849715245,0.1201484,83237.0,83236.0,0.12464]
[1741849715428,0.1201499,83236.0,83235.0,0.064]
[1741849715738,0.1201542,83233.0,83232.0,0.28547845]
[1741849716435,0.13223974,83233.0,83232.0,0.28547845]
[1741849716939,0.1201629,83227.0,83226.0,0.35607357]
[1741849717439,0.1201715,83221.0,83219.0,0.00180228]
[1741849717639,0.1201715,83221.0,83214.0,0.0642]
[1741849717640,0.1201874,83210.0,83209.0,0.1246]
[1741849717845,0.1201874,83210.0,83209.0,0.1559]
[1741849718339,0.1201874,83210.0,83209.0,0.2760889]
[1741849718534,0.1201874,83210.0,83209.0,0.3077889]
[1741849718843,0.1804874,83210.0,83209.0,0.1831889]
[1741849719237,0.0603,83210.0,83209.0,0.1831889]
[1741849719833,0.0613,83210.0,83209.0,0.1831889]
[1741849720033,0.0513,83210.0,83209.0,0.1831889]
[1741849720329,0.1714874,83210.0,83209.0,0.1831889]
[1741849720529,0.1704874,83210.0,83209.0,0.1831889]
[1741849720739,0.0600829,83225.0,83217.0,0.1201773]
[1741849720946,0.12035617,83218.0,83217.0,0.1301773]
[1741849721138,0.12035617,83218.0,83217.0,0.1955773]
[1741849722736,0.12235617,83218.0,83217.0,0.1955773]
[1741849723140,0.12235617,83218.0,83217.0,0.20754259]
[1741849723438,0.12235617,83218.0,83217.0,0.21985765]
[1741849723640,0.12535617,83218.0,83217.0,0.21985765]
[1741849723830,0.00518027,83218.0,83217.0,0.25985765]
[1741849724037,0.00518027,83218.0,83217.0,0.22985765]
[1741849724334,0.12535617,83218.0,83217.0,0.22985765]
[1741849724742,0.12535617,83218.0,83217.0,0.21985765]
[1741849724943,0.12535617,83218.0,83217.0,0.23985765]
[1741849725142,0.12535617,83218.0,83217.0,0.21985765]
[1741849726335,0.12535617,83218.0,83217.0,0.20754259]
[1741849726535,0.15735617,83218.0,83217.0,0.20754259]
[1741849727947,0.15735617,83218.0,83217.0,0.1955773]
[1741849730045,0.15735617,83218.0,83217.0,0.20783105]
[1741849734348,0.15735617,83218.0,83217.0,0.21998027]
[1741849734756,0.15735617,83218.0,83217.0,0.17873112]
[1741849734950,0.15735617,83218.0,83217.0,0.16873112]
[1741849735351,0.15735617,83218.0,83217.0,0.04465112]
[1741849736255,0.15735617,83218.0,83217.0,0.1526773]
[1741849738246,0.15735617,83218.0,83217.0,0.16484143]
[1741849738641,0.15735617,83218.0,83217.0,0.04466413]
[1741849738947,0.15735617,83218.0,83217.0,0.01216922]
[1741849739147,0.03718027,83218.0,83217.0,0.01217057]
[1741849739348,0.15735617,83218.0,83217.0,0.01217057]
[1741849739543,0.1201947,83206.0,83205.0,0.1201937]
[1741849739752,0.1201947,83206.0,83205.0,0.0314]
[1741849740252,0.1846947,83206.0,83205.0,0.04318477]
[1741849740458,0.1846947,83206.0,83205.0,0.07608477]
[1741849740758,0.0645,83206.0,83205.0,0.19627947]
[1741849741055,0.1846932,83206.0,83205.0,0.19627947]
[1741849741360,0.1846932,83206.0,83205.0,0.1844947]
[1741849742958,0.1846932,83206.0,83205.0,0.0643]
[1741849743656,0.1846932,83206.0,83205.0,0.1844947]
[1741849744254,0.0645,83206.0,83205.0,0.4344947]
[1741849744449,0.0645,83206.0,83205.0,0.4544947]
[1741849745153,0.10781394,83211.0,83210.0,0.1201874]
[1741849745351,0.22799994,83211.0,83210.0,0.1301874]
[1741849745658,0.25859994,83211.0,83210.0,0.1301874]
[1741849746159,0.150786,83211.0,83210.0,0.0419]
[1741849746460,0.151786,83211.0,83210.0,0.0419]
[1741849746762,0.151786,83211.0,83210.0,0.1620874]
[1741849747650,0.151786,83211.0,83210.0,0.1820874]
[1741849748558,0.151786,83211.0,83210.0,0.1620874]
[1741849750154,0.151786,83211.0,83205.0,0.0932968]
[1741849750155,0.1201932,83206.0,83205.0,0.0332]
[1741849750349,0.1201932,83206.0,83205.0,0.1514947]
[1741849750757,0.1830932,83206.0,83205.0,0.1514947]
[1741849751769,0.120199,83202.0,83201.0,0.24368763]
[1741849751954,0.120199,83202.0,83201.0,0.27628763]
[1741849752659,0.182999,83202.0,83201.0,0.27628763]
[1741849752857,0.182999,83202.0,83201.0,0.30858763]
[1741849753159,0.0628,83202.0,83197.0,0.00180291]
[1741849753359,0.0628,83202.0,83181.0,0.46090901]
[1741849753360,0.0601012,83200.0,83181.0,0.46090901]
[1741849753564,0.1202192,83188.0,83185.0,0.1202224]
[1741849753967,0.1202192,83188.0,83183.0,0.1202258]
[1741849754162,0.12032796,83188.0,83183.0,0.1202258]
[1741849754359,0.15122796,83188.0,83183.0,0.1202258]
[1741849754559,0.16313518,83188.0,83183.0,0.1202258]
[1741849754762,0.120225,83185.0,83184.0,0.1202248]
[1741849755266,0.120225,83185.0,83180.0,0.3574427]
[1741849755267,0.1202293,83181.0,83180.0,0.3574427]
[1741849755759,0.0309,83182.0,83181.0,0.1803439]
[1741849755955,0.1511279,83182.0,83181.0,0.0432]
[1741849756260,0.1202293,83181.0,83180.0,0.3574427]
[1741849756462,0.1532293,83181.0,83180.0,0.51074776]
[1741849757054,0.033,83181.0,83180.0,0.51074776]
[1741849757367,0.033,83181.0,83180.0,0.54184776]
[1741849757568,0.1532293,83181.0,83180.0,0.5214943]
[1741849757770,0.033,83181.0,83180.0,0.5534943]
[1741849757968,0.1532293,83181.0,83180.0,0.5534943]
[1741849758272,0.033,83181.0,83180.0,0.5534943]
[1741849759173,0.2610073,83181.0,83180.0,0.3701635]
[1741849759472,0.2610073,83181.0,83180.0,0.01236862]
[1741849759867,0.27335339,83181.0,83180.0,0.01236862]
[1741849760369,0.15325692,83181.0,83166.0,0.1246]
[1741849760567,0.1202496,83167.0,83165.0,0.12456]
[1741849760871,0.184551,83166.0,83165.0,0.12456]
[1741849761374,0.18468383,83166.0,83165.0,0.12456]
[1741849762662,0.17368383,83166.0,83165.0,0.12456]
[1741849762964,0.1202539,83164.0,83163.0,0.0321]
[1741849764272,0.1242539,83164.0,83163.0,0.0321]
[1741849764973,0.1560539,83164.0,83163.0,0.0321]
[1741849765472,0.0388,83164.0,83146.0,0.0601399]
[1741849765666,0.1202684,83154.0,83153.0,0.0301]
[1741849766159,0.1202684,83154.0,83153.0,0.07250139]
[1741849766357,0.1202684,83154.0,83153.0,0.19277119]
[1741849766968,0.1212684,83154.0,83153.0,0.19277119]
[1741849767669,0.1212684,83154.0,83153.0,0.07250139]
[1741849768471,0.1212684,83154.0,83153.0,0.1503698]
[1741849768664,0.1212684,83154.0,83153.0,0.1809698]
[1741849769770,0.1212684,83154.0,83153.0,0.0301]
[1741849770668,0.1820684,83154.0,83153.0,0.0301]
[1741849770873,0.18219852,83154.0,83153.0,0.0301]
[1741849771063,0.1202713,83152.0,83151.0,0.12532]
[1741849771966,0.06193012,83154.0,83153.0,0.1202698]
[1741849772674,0.1202546,83164.0,83163.0,0.120254]
[1741849772868,0.1202582,83162.0,83161.0,0.1202578]
[1741849773074,0.1202582,83162.0,83161.0,0.2405156]
[1741849773762,0.1202582,83162.0,83161.0,0.1202578]
[1741849773965,0.1531582,83162.0,83161.0,0.1202578]
[1741849775576,0.1202857,83143.0,83142.0,0.5396846]
[1741849775876,0.1202857,83143.0,83142.0,0.4286246]
[1741849776078,0.1202857,83143.0,83142.0,0.4593246]
[1741849776471,0.1514857,83143.0,83142.0,0.4593246]
[1741849776780,0.00018038,83151.0,83142.0,0.75844]
[1741849777079,0.0312,83161.0,83160.0,0.1202597]
[1741849777268,0.1514582,83161.0,83160.0,0.2472197]
[1741849777776,0.0312,83161.0,83160.0,0.32128437]
[1741849778080,0.1514582,83161.0,83160.0,0.33338731]
[1741849778769,0.1514582,83161.0,83160.0,0.33335639]
[1741849779778,0.0342,83161.0,83160.0,0.33335639]
[1741849780171,0.0362,83161.0,83160.0,0.33335639]
[1741849780377,0.1564582,83161.0,83160.0,0.33335639]
[1741849780576,0.0669,83161.0,83160.0,0.33335639]
[1741849781576,0.00018038,83169.0,83162.0,0.1202568]
[1741849781769,0.00018038,83169.0,83168.0,0.1202481]
[1741849782077,0.00018038,83169.0,83168.0,0.53278185]
[1741849782574,0.00018038,83169.0,83168.0,0.53276256]
[1741849782878,0.00618038,83169.0,83168.0,0.59716256]
[1741849783667,0.00318038,83169.0,83168.0,0.59916256]
[1741849784081,0.1438773,83176.0,83175.0,0.120238]
[1741849784275,0.1438773,83176.0,83175.0,0.28963246]
[1741849784476,0.1438773,83176.0,83175.0,0.277118]
[1741849784677,0.1438773,83176.0,83175.0,0.30161035]
[1741849786872,0.0301,83177.0,83175.0,0.30361035]
[1741849787072,0.0301,83177.0,83176.0,0.13261354]
[1741849787272,0.0301,83177.0,83176.0,0.22501354]
[1741849788085,0.1503351,83177.0,83176.0,0.22501354]
[1741849788272,0.1503351,83177.0,83176.0,0.22601354]
[1741849788779,0.0301,83177.0,83176.0,0.2136366]
[1741849788980,0.0301,83177.0,83176.0,0.22622528]
[1741849789181,0.0301,83177.0,83176.0,0.22722528]
[1741849790683,0.0301,83177.0,83176.0,0.22622528]
[1741849790984,0.0301,83177.0,83176.0,0.22722528]
[1741849791482,0.0301,83177.0,83176.0,0.22622528]
[1741849791688,0.0301,83177.0,83176.0,0.22722528]
[1741849792183,0.1503351,83177.0,83176.0,0.22722528]
[1741849792680,0.1503351,83177.0,83176.0,0.19682528]
[1741849793479,0.0613,83177.0,83176.0,0.29134528]
[1741849793783,0.0613,83177.0,83176.0,0.30970619]
[1741849794488,0.1815351,83177.0,83176.0,0.30970619]
[1741849795684,0.1815351,83177.0,83176.0,0.18318619]
[1741849795987,0.0613,83177.0,83176.0,0.30954619]
[1741849796890,0.0623,83177.0,83176.0,0.30954619]
[1741849797078,0.0623,83177.0,83176.0,0.31054619]
[1741849797283,0.1825351,83177.0,83176.0,0.31054619]
[1741849797789,0.1815351,83177.0,83176.0,0.31054619]
[1741849798685,0.1815351,83177.0,83176.0,0.31066664]
[1741849798889,0.1825351,83177.0,83176.0,0.31066664]
[1741849799295,0.1825351,83177.0,83176.0,0.30966664]
[1741849799491,0.0623,83177.0,83176.0,0.30966664]
[1741849799991,0.0623,83177.0,83176.0,0.34206664]
[1741849800591,0.0623,83177.0,83176.0,0.34203765]
[1741849800792,0.0613,83177.0,83176.0,0.34203765]
[1741849800988,0.1815351,83177.0,83176.0,0.30963765]
[1741849801892,0.1815351,83177.0,83176.0,0.06304105]
[1741849802085,0.1815351,83177.0,83176.0,0.03304105]
[1741849802593,0.1815351,83177.0,83176.0,0.15327765]
[1741849802787,0.1815351,83177.0,83176.0,0.13294463]
[1741849802988,0.1815351,83177.0,83176.0,0.01270803]
[1741849803196,0.0613,83177.0,83176.0,0.01270803]
[1741849803391,0.0613,83177.0,83176.0,0.13294463]
[1741849803585,0.0623,83177.0,83176.0,0.16624463]
[1741849803901,0.0623,83177.0,83176.0,0.20624463]
[1741849804188,0.0623,83177.0,83176.0,0.21647797]
[1741849804596,0.0613,83177.0,83176.0,0.22647797]
[1741849805987,0.0613,83177.0,83176.0,0.21647797]
[1741849806486,0.1815351,83177.0,83176.0,0.21647797]
[1741849806899,0.1815351,83177.0,83176.0,0.2039366]
[1741849807092,0.06118799,83177.0,83176.0,0.2039366]
[1741849807596,0.06118799,83177.0,83176.0,0.21650382]
[1741849808193,0.06118799,83177.0,83176.0,0.2039366]
[1741849808496,0.06118799,83177.0,83176.0,0.21650642]
[1741849809290,0.06118799,83177.0,83176.0,0.21651263]
[1741849811091,0.06118799,83177.0,83176.0,0.21656672]
[1741849813300,0.06118799,83177.0,83176.0,0.2039366]
[1741849814297,0.06118799,83177.0,83176.0,0.21656951]
[1741849814600,0.06118799,83177.0,83176.0,0.2039366]
[1741849815699,0.06118799,83177.0,83176.0,0.21654489]
[1741849815895,0.06118799,83177.0,83176.0,0.23654489]
[1741849816501,0.0018037,83203.0,83202.0,0.120199]
[1741849816807,0.1220012,83203.0,83202.0,0.13280729]
[1741849817106,0.1201975,83203.0,83202.0,0.01260829]
[1741849817304,0.13212967,83203.0,83202.0,0.01260829]
[1741849817603,0.13712967,83203.0,83202.0,0.01260829]
[1741849817800,0.20122967,83203.0,83202.0,0.01260829]
[1741849818106,0.20622967,83203.0,83202.0,0.01260829]
[1741849819399,0.20622967,83203.0,83202.0,0.15315262]
[1741849819607,0.20622967,83203.0,83202.0,0.03295362]
[1741849819807,0.20622967,83203.0,83202.0,0.15315262]
[1741849820198,0.20622967,83203.0,83202.0,0.13280729]
[1741849820597,0.1942975,83203.0,83202.0,0.13280729]
[1741849820898,0.0741,83203.0,83202.0,0.13280729]
[1741849821095,0.1942975,83203.0,83202.0,0.13280729]
[1741849821311,0.1942975,83203.0,83202.0,0.15373573]
[1741849821602,0.1942975,83203.0,83202.0,0.03353673]
[1741849821807,0.2060505,83203.0,83202.0,0.03353673]
[1741849822395,0.0741,83203.0,83202.0,0.03353673]
[1741849822611,0.1942975,83203.0,83202.0,0.03353673]
[1741849823107,0.1942975,83203.0,83202.0,0.03329989]
[1741849823997,0.20632999,83203.0,83202.0,0.03329989]
[1741849824205,0.20632999,83203.0,83194.0,0.12510026]
[1741849824206,0.08613249,83203.0,83194.0,0.00018026]
[1741849824503,0.1202091,83195.0,83194.0,0.00018026]
[1741849825406,0.1838091,83195.0,83194.0,0.00018026]
[1741849826808,0.1888091,83195.0,83194.0,0.00018026]
[1741849827210,0.1938091,83195.0,83194.0,0.00018026]
[1741849828306,0.1938091,83195.0,83194.0,0.01351779]
[1741849831611,0.25225589,83195.0,83194.0,0.01351779]
[1741849834206,0.25225589,83195.0,83194.0,0.034367]
[1741849835208,0.120238,83175.0,83174.0,0.12448]
[1741849836007,0.0624,83176.0,83174.0,0.12448]
[1741849836208,0.0315,83175.0,83174.0,0.2447194]
[1741849836405,0.0315,83175.0,83174.0,0.25761851]
[1741849837504,0.0315,83175.0,83174.0,0.25861851]
[1741849837914,0.05844679,83195.0,83182.0,0.1202279]
[1741849838111,0.03168026,83183.0,83182.0,0.13312701]
[1741849838314,0.00018026,83183.0,83182.0,0.13312701]
[1741849838611,0.00018026,83183.0,83182.0,0.19902701]
[1741849838811,0.15190666,83183.0,83182.0,0.19902701]
[1741849839013,0.18400666,83183.0,83182.0,0.19909167]
[1741849839206,0.18500666,83183.0,83182.0,0.19909167]
[1741849839919,0.18700666,83183.0,83182.0,0.19909167]
[1741849841423,0.18700666,83183.0,83182.0,0.07886377]
[1741849843320,0.18700666,83183.0,83182.0,0.19909167]
[1741849843321,0.03468026,83183.0,83182.0,0.19909167]
[1741849843620,0.03468026,83183.0,83182.0,0.20909167]
[1741849844210,0.00318026,83183.0,83182.0,0.22909167]
[1741849844411,0.00318026,83183.0,83182.0,0.35357167]
[1741849844608,0.1202126,83193.0,83189.0,0.1202178]
[1741849844807,0.17998171,83190.0,83189.0,0.14318157]
[1741849845214,0.17998171,83190.0,83189.0,0.16391235]
[1741849845415,0.17998171,83190.0,83189.0,0.24561235]
[1741849845616,0.17998171,83190.0,83189.0,0.22561235]
[1741849845815,0.18698171,83190.0,83189.0,0.22561235]
[1741849846015,0.18698171,83190.0,83189.0,0.23561235]
[1741849846324,0.007,83190.0,83189.0,0.23561235]
[1741849847618,0.007,83190.0,83189.0,0.24894789]
[1741849847925,0.1272163,83190.0,83189.0,0.23894789]
[1741849848420,0.1272163,83190.0,83189.0,0.25109539]
[1741849850213,0.1272163,83190.0,83189.0,0.26109539]